[Event "Late-Titled-Tuesday-Blitz-February-27-2024"]
[Site "Chess.com"]
[Date "2024.02.27"]
[Round "2"]
[White "dimoni64"]
[Black "esrosenberg"]
[Result "0-1"]
[WhiteElo "1965"]
[BlackElo "2423"]
[TimeControl "180+1"]
[EndTime "14:18:09 PST"]
[Termination "esrosenberg won by checkmate"]

1. d4 {[%clk 0:03:00.9]} 1... d5 {[%clk 0:02:57.1]} 2. c4 {[%clk 0:03:01.3]}
2... e6 {[%clk 0:02:57.2]} 3. Nc3 {[%clk 0:03:01.5]} 3... c5 {[%clk 0:02:57.3]}
4. cxd5 {[%clk 0:02:56.7]} 4... cxd4 {[%clk 0:02:57.2]} 5. Qxd4 {[%clk 0:02:55]}
5... Nc6 {[%clk 0:02:56.9]} 6. Qd1 {[%clk 0:02:50.4]} 6... exd5 {[%clk
0:02:56.8]} 7. Qxd5 {[%clk 0:02:46]} 7... Qc7 {[%clk 0:02:56.7]} 8. g3 {[%clk
0:02:44.2]} 8... Nf6 {[%clk 0:02:52.1]} 9. Qd1 {[%clk 0:02:41.1]} 9... Bc5
{[%clk 0:02:47.6]} 10. Bg2 {[%clk 0:02:29.2]} 10... O-O {[%clk 0:02:45.2]} 11.
Nf3 {[%clk 0:02:23.4]} 11... Bf5 {[%clk 0:02:16.6]} 12. O-O {[%clk 0:02:03.8]}
12... h6 {[%clk 0:02:03.7]} 13. Bf4 {[%clk 0:02:02.4]} 13... Qe7 {[%clk
0:02:00.7]} 14. Nd5 {[%clk 0:01:28.8]} 14... Nxd5 {[%clk 0:01:57.3]} 15. Qxd5
{[%clk 0:01:29.7]} 15... Be4 {[%clk 0:01:55.9]} 16. Qc4 {[%clk 0:01:24.9]} 16...
Rac8 {[%clk 0:01:49.6]} 17. Rac1 {[%clk 0:01:16.1]} 17... Bb6 {[%clk 0:01:46.9]}
18. Ne5 {[%clk 0:00:59.3]} 18... Bxg2 {[%clk 0:01:36]} 19. Kxg2 {[%clk
0:00:59.3]} 19... Nxe5 {[%clk 0:01:35.5]} 20. Qxc8 {[%clk 0:00:58.5]} 20... Rxc8
{[%clk 0:01:33.7]} 21. Rxc8+ {[%clk 0:00:59.4]} 21... Kh7 {[%clk 0:01:30.3]} 22.
a4 {[%clk 0:00:47]} 22... Ng6 {[%clk 0:01:22.2]} 23. e3 {[%clk 0:00:36.8]} 23...
Nxf4+ {[%clk 0:01:15.8]} 24. exf4 {[%clk 0:00:37.7]} 24... Qe4+ {[%clk
0:01:15.7]} 25. Kg1 {[%clk 0:00:36.6]} 25... Qxa4 {[%clk 0:01:15.7]} 26. Rcc1
{[%clk 0:00:28.5]} 26... h5 {[%clk 0:01:15.4]} 27. h4 {[%clk 0:00:27.2]} 27...
f6 {[%clk 0:01:09.2]} 28. Kg2 {[%clk 0:00:26.6]} 28... Qe4+ {[%clk 0:01:06.5]}
29. Kh2 {[%clk 0:00:24.7]} 29... g5 {[%clk 0:00:57.7]} 30. hxg5 {[%clk
0:00:23.8]} 30... fxg5 {[%clk 0:00:58.3]} 31. fxg5 {[%clk 0:00:22.6]} 31... h4
{[%clk 0:00:58.8]} 32. f3 {[%clk 0:00:17.4]} 32... Qe2+ {[%clk 0:00:49.7]} 33.
Kh3 {[%clk 0:00:16.4]} 33... hxg3 {[%clk 0:00:49]} 34. Kxg3 {[%clk 0:00:16.4]}
34... Qxb2 {[%clk 0:00:46.3]} 35. Rce1 {[%clk 0:00:13.2]} 35... Kg6 {[%clk
0:00:43.5]} 36. f4 {[%clk 0:00:11.2]} 36... Bd4 {[%clk 0:00:34.2]} 37. Re6+
{[%clk 0:00:09.4]} 37... Kf5 {[%clk 0:00:33.7]} 38. Re8 {[%clk 0:00:08.2]} 38...
Qa3+ {[%clk 0:00:18]} 39. Rf3 {[%clk 0:00:08.6]} 39... Qc1 {[%clk 0:00:03.8]}
40. Rd8 {[%clk 0:00:08.8]} 40... Qg1+ {[%clk 0:00:02.4]} 41. Kh3 {[%clk
0:00:09]} 41... Qh1+ {[%clk 0:00:02.6]} 42. Kg3 {[%clk 0:00:09.1]} 42... Qg1+
{[%clk 0:00:02.7]} 43. Kh3 {[%clk 0:00:09.4]} 43... Bf2 {[%clk 0:00:03.3]} 44.
Rd5+ {[%clk 0:00:06.6]} 44... Ke4 {[%clk 0:00:02.6]} 45. Rfd3 {[%clk 0:00:02.1]}
45... Qh1+ {[%clk 0:00:01.7]} 46. Kg4 {[%clk 0:00:01.3]} 46... Qh4# {[%clk
0:00:02.2]} 0-1

[Event "Late-Titled-Tuesday-Blitz-February-27-2024"]
[Site "Chess.com"]
[Date "2024.02.27"]
[Round "2"]
[White "Grischuk"]
[Black "DanylaBagrov"]
[Result "1/2-1/2"]
[WhiteElo "3039"]
[BlackElo "2533"]
[TimeControl "180+1"]
[EndTime "14:18:10 PST"]
[Termination "Game drawn by repetition"]

1. d4 {[%clk 0:03:00.9]} 1... f5 {[%clk 0:02:51.2]} 2. Nc3 {[%clk 0:02:59.3]}
2... Nf6 {[%clk 0:02:50.5]} 3. Bg5 {[%clk 0:03:00]} 3... e6 {[%clk 0:02:44.7]}
4. e4 {[%clk 0:02:59.9]} 4... fxe4 {[%clk 0:02:41.3]} 5. Nxe4 {[%clk 0:03:00.1]}
5... Be7 {[%clk 0:02:42]} 6. Bxf6 {[%clk 0:03:00.4]} 6... Bxf6 {[%clk 0:02:42]}
7. Nf3 {[%clk 0:03:01.1]} 7... O-O {[%clk 0:02:38.2]} 8. Bd3 {[%clk 0:03:01.3]}
8... b6 {[%clk 0:02:34.4]} 9. Qe2 {[%clk 0:02:59.1]} 9... Bb7 {[%clk 0:02:27.9]}
10. O-O-O {[%clk 0:02:59.1]} 10... Nc6 {[%clk 0:02:25.7]} 11. c3 {[%clk
0:02:59.3]} 11... Ne7 {[%clk 0:02:10.5]} 12. h4 {[%clk 0:02:57.4]} 12... Nd5
{[%clk 0:01:59.7]} 13. g3 {[%clk 0:02:56.7]} 13... c5 {[%clk 0:01:55.8]} 14.
Neg5 {[%clk 0:02:19.3]} 14... h6 {[%clk 0:01:32.1]} 15. Bh7+ {[%clk 0:02:12.1]}
15... Kh8 {[%clk 0:01:31.7]} 16. Bc2 {[%clk 0:02:13]} 16... Bxg5+ {[%clk
0:00:34.7]} 17. Nxg5 {[%clk 0:01:52.3]} 17... cxd4 {[%clk 0:00:26.1]} 18. Rxd4
{[%clk 0:01:39]} 18... hxg5 {[%clk 0:00:21.6]} 19. hxg5+ {[%clk 0:01:35.7]}
19... Kg8 {[%clk 0:00:22.3]} 20. g6 {[%clk 0:01:08.8]} 20... Qg5+ {[%clk
0:00:21.1]} 21. f4 {[%clk 0:00:58.8]} 21... Nxf4 {[%clk 0:00:17.4]} 22. gxf4
{[%clk 0:00:58.7]} 22... Rxf4 {[%clk 0:00:18]} 23. Qd2 {[%clk 0:00:57.3]} 23...
Bxh1 {[%clk 0:00:15.1]} 24. Rxf4 {[%clk 0:00:56.7]} 24... Qg1+ {[%clk
0:00:13.8]} 25. Bd1 {[%clk 0:00:43.5]} 25... Rf8 {[%clk 0:00:14.3]} 26. Rg4
{[%clk 0:00:18.4]} 26... Qf2 {[%clk 0:00:11.8]} 27. Qxd7 {[%clk 0:00:05]} 27...
Qe3+ {[%clk 0:00:11.4]} 28. Qd2 {[%clk 0:00:04.7]} 28... Qxd2+ {[%clk
0:00:10.6]} 29. Kxd2 {[%clk 0:00:05.6]} 29... Rd8+ {[%clk 0:00:11]} 30. Rd4
{[%clk 0:00:02.8]} 30... Rxd4+ {[%clk 0:00:10.8]} 31. cxd4 {[%clk 0:00:03.7]}
31... Bd5 {[%clk 0:00:10.8]} 32. a3 {[%clk 0:00:03.4]} 32... Be4 {[%clk
0:00:11.2]} 33. Bb3 {[%clk 0:00:03.2]} 33... Kf8 {[%clk 0:00:09.7]} 34. Ke3
{[%clk 0:00:03.1]} 34... Bxg6 {[%clk 0:00:10.1]} 35. Bxe6 {[%clk 0:00:03.5]}
35... Ke7 {[%clk 0:00:10.4]} 36. Bc4 {[%clk 0:00:03.5]} 36... Bf7 {[%clk
0:00:11]} 37. Bd3 {[%clk 0:00:03.6]} 37... Kd6 {[%clk 0:00:11.6]} 38. Kf4 {[%clk
0:00:03.2]} 38... Kd5 {[%clk 0:00:11.4]} 39. Ke3 {[%clk 0:00:03.7]} 39... Be6
{[%clk 0:00:10.6]} 40. Bb1 {[%clk 0:00:03.1]} 40... g5 {[%clk 0:00:10.6]} 41.
Ba2+ {[%clk 0:00:03.2]} 41... Kd6 {[%clk 0:00:11.2]} 42. Bb1 {[%clk 0:00:04.1]}
42... Bd7 {[%clk 0:00:10.6]} 43. Be4 {[%clk 0:00:03.9]} 43... a5 {[%clk
0:00:09.9]} 44. Bg2 {[%clk 0:00:03.3]} 44... Be6 {[%clk 0:00:10.3]} 45. Be4
{[%clk 0:00:03.5]} 45... Bd5 {[%clk 0:00:10.5]} 46. Bf5 {[%clk 0:00:03.6]} 46...
Bg2 {[%clk 0:00:10.4]} 47. Bc2 {[%clk 0:00:03.1]} 47... Bc6 {[%clk 0:00:10.1]}
48. Bf5 {[%clk 0:00:03.3]} 48... Bd7 {[%clk 0:00:10.1]} 49. Bc2 {[%clk
0:00:03.7]} 49... Be6 {[%clk 0:00:10.3]} 50. Be4 {[%clk 0:00:03.8]} 50... Bd7
{[%clk 0:00:09.9]} 51. Bc2 {[%clk 0:00:04]} 51... Be6 {[%clk 0:00:09.6]} 52. Be4
{[%clk 0:00:04.2]} 1/2-1/2

[Event "Late-Titled-Tuesday-Blitz-February-27-2024"]
[Site "Chess.com"]
[Date "2024.02.27"]
[Round "2"]
[White "Nara_Kh"]
[Black "tteshan"]
[Result "0-1"]
[WhiteElo "2359"]
[BlackElo "2591"]
[TimeControl "180+1"]
[EndTime "14:18:11 PST"]
[Termination "tteshan won by resignation"]

1. e4 {[%clk 0:03:00]} 1... c5 {[%clk 0:02:59.7]} 2. Nf3 {[%clk 0:02:59.8]} 2...
Nc6 {[%clk 0:03:00.1]} 3. Bb5 {[%clk 0:02:59]} 3... e6 {[%clk 0:02:56.9]} 4. O-O
{[%clk 0:02:55.3]} 4... Nge7 {[%clk 0:02:56.4]} 5. Re1 {[%clk 0:02:55.3]} 5...
a6 {[%clk 0:02:56.6]} 6. Bf1 {[%clk 0:02:54.7]} 6... d5 {[%clk 0:02:56.1]} 7. d3
{[%clk 0:02:54]} 7... dxe4 {[%clk 0:02:51.7]} 8. Rxe4 {[%clk 0:02:51.5]} 8...
Nd5 {[%clk 0:02:50.8]} 9. Bg5 {[%clk 0:02:50.6]} 9... Be7 {[%clk 0:02:50.8]} 10.
h4 {[%clk 0:02:48.9]} 10... h6 {[%clk 0:02:49.2]} 11. Bc1 {[%clk 0:02:46.1]}
11... Nf6 {[%clk 0:02:46.6]} 12. Re1 {[%clk 0:02:44.9]} 12... b5 {[%clk
0:02:43.8]} 13. b3 {[%clk 0:02:44]} 13... Bb7 {[%clk 0:02:43.9]} 14. Bb2 {[%clk
0:02:43.8]} 14... O-O {[%clk 0:02:32.2]} 15. Nbd2 {[%clk 0:02:41.6]} 15... Nd4
{[%clk 0:02:18]} 16. Nxd4 {[%clk 0:02:37.2]} 16... cxd4 {[%clk 0:02:18.9]} 17.
Nf3 {[%clk 0:02:38.1]} 17... Bb4 {[%clk 0:02:14]} 18. Nxd4 {[%clk 0:02:23.6]}
18... Bxe1 {[%clk 0:02:12.5]} 19. Qxe1 {[%clk 0:02:24.5]} 19... Rc8 {[%clk
0:02:11.4]} 20. a4 {[%clk 0:02:16.1]} 20... Qd5 {[%clk 0:02:03.9]} 21. axb5
{[%clk 0:01:59.1]} 21... axb5 {[%clk 0:02:04.8]} 22. Qb4 {[%clk 0:01:59.5]}
22... Rfd8 {[%clk 0:01:54.1]} 23. Re1 {[%clk 0:01:49.7]} 23... Qh5 {[%clk
0:01:46.1]} 24. Nxb5 {[%clk 0:01:26.7]} 24... Rxc2 {[%clk 0:01:43.6]} 25. Be5
{[%clk 0:01:23.2]} 25... Rd7 {[%clk 0:01:21.2]} 26. Nd4 {[%clk 0:01:16.2]} 26...
Rc8 {[%clk 0:01:15.2]} 27. Nb5 {[%clk 0:00:46.4]} 27... Ng4 {[%clk 0:01:04.8]}
28. Bg3 {[%clk 0:00:43.3]} 28... Bd5 {[%clk 0:00:55]} 29. Nd6 {[%clk 0:00:40.8]}
29... Ra8 {[%clk 0:00:50.9]} 30. d4 {[%clk 0:00:40.3]} 30... f5 {[%clk
0:00:45.2]} 31. Bb5 {[%clk 0:00:39.3]} 31... Rda7 {[%clk 0:00:42.6]} 32. Bc4
{[%clk 0:00:37.8]} 32... Ra1 {[%clk 0:00:34.2]} 33. Bxd5 {[%clk 0:00:34.3]}
33... exd5 {[%clk 0:00:28.4]} 34. Qd2 {[%clk 0:00:28.5]} 34... f4 {[%clk
0:00:19.4]} 35. Bxf4 {[%clk 0:00:26.7]} 35... Qxh4 {[%clk 0:00:18.3]} 36. Bg3
{[%clk 0:00:27]} 36... Qf6 {[%clk 0:00:17.3]} 37. f3 {[%clk 0:00:24.5]} 37...
Rxe1+ {[%clk 0:00:12.3]} 38. Bxe1 {[%clk 0:00:24.6]} 38... Qxd6 {[%clk
0:00:12.2]} 39. fxg4 {[%clk 0:00:25]} 39... Re8 {[%clk 0:00:11.5]} 40. Bf2
{[%clk 0:00:24]} 40... Qe6 {[%clk 0:00:10.5]} 41. Qd1 {[%clk 0:00:23.4]} 41...
Qe2 {[%clk 0:00:10]} 42. Qxe2 {[%clk 0:00:20.4]} 42... Rxe2 {[%clk 0:00:10.9]}
43. Kf1 {[%clk 0:00:21]} 43... Rb2 {[%clk 0:00:11.2]} 44. Be3 {[%clk 0:00:21.1]}
44... Rxb3 {[%clk 0:00:11.5]} 45. Kf2 {[%clk 0:00:21.8]} 45... Kf7 {[%clk
0:00:11.6]} 46. Kf3 {[%clk 0:00:22.3]} 46... Ke6 {[%clk 0:00:12.1]} 47. Kf4
{[%clk 0:00:20.9]} 47... Rb2 {[%clk 0:00:12.1]} 48. g3 {[%clk 0:00:20.1]} 48...
Rb1 {[%clk 0:00:12.5]} 49. Kf3 {[%clk 0:00:20.1]} 49... Rf1+ {[%clk 0:00:12.4]}
50. Kg2 {[%clk 0:00:20.3]} 50... Rf7 {[%clk 0:00:12.7]} 51. g5 {[%clk
0:00:20.6]} 51... hxg5 {[%clk 0:00:12.4]} 52. Bxg5 {[%clk 0:00:21.5]} 52... Kf5
{[%clk 0:00:12.9]} 53. Be3 {[%clk 0:00:21.6]} 53... Ke4 {[%clk 0:00:13.5]} 54.
Bf2 {[%clk 0:00:22.1]} 54... Rxf2+ {[%clk 0:00:13.1]} 55. Kxf2 {[%clk
0:00:22.4]} 55... Kxd4 {[%clk 0:00:13.6]} 56. Kf3 {[%clk 0:00:23.3]} 56... Kc3
{[%clk 0:00:13.7]} 57. Ke3 {[%clk 0:00:24.2]} 57... d4+ {[%clk 0:00:14]} 58. Ke4
{[%clk 0:00:24.9]} 58... d3 {[%clk 0:00:14.5]} 0-1

[Event "Late-Titled-Tuesday-Blitz-February-27-2024"]
[Site "Chess.com"]
[Date "2024.02.27"]
[Round "2"]
[White "Elsa167"]
[Black "ACollins05"]
[Result "1-0"]
[WhiteElo "2903"]
[BlackElo "2577"]
[TimeControl "180+1"]
[EndTime "14:18:12 PST"]
[Termination "Elsa167 won by checkmate"]

1. d4 {[%clk 0:03:00.4]} 1... d5 {[%clk 0:02:57.7]} 2. c4 {[%clk 0:03:00.8]}
2... e6 {[%clk 0:02:57.7]} 3. Nf3 {[%clk 0:03:00.6]} 3... Nf6 {[%clk 0:02:57.6]}
4. Nc3 {[%clk 0:03:00.9]} 4... Be7 {[%clk 0:02:57]} 5. g3 {[%clk 0:03:00.8]}
5... h6 {[%clk 0:02:49.6]} 6. Bg2 {[%clk 0:03:00.9]} 6... O-O {[%clk 0:02:48.9]}
7. O-O {[%clk 0:03:00.6]} 7... Nc6 {[%clk 0:02:49.4]} 8. b3 {[%clk 0:02:49.7]}
8... b6 {[%clk 0:02:41.5]} 9. cxd5 {[%clk 0:02:32.8]} 9... Nxd5 {[%clk
0:02:38.9]} 10. Nxd5 {[%clk 0:02:31.3]} 10... exd5 {[%clk 0:02:38.9]} 11. Bf4
{[%clk 0:02:28.6]} 11... Bb7 {[%clk 0:02:37.2]} 12. Rc1 {[%clk 0:02:28.2]} 12...
Bd6 {[%clk 0:02:31.9]} 13. Qd2 {[%clk 0:02:25]} 13... Rc8 {[%clk 0:02:27.4]} 14.
Nh4 {[%clk 0:02:03]} 14... Re8 {[%clk 0:02:00.3]} 15. Nf5 {[%clk 0:01:29.3]}
15... Bxf4 {[%clk 0:01:57.4]} 16. Qxf4 {[%clk 0:01:30.2]} 16... Ne7 {[%clk
0:01:48]} 17. Bh3 {[%clk 0:01:01.5]} 17... Ng6 {[%clk 0:01:31.3]} 18. Qf3 {[%clk
0:00:56.9]} 18... c6 {[%clk 0:01:17.6]} 19. Bg4 {[%clk 0:00:55.1]} 19... Rc7
{[%clk 0:01:15.4]} 20. Rc3 {[%clk 0:00:52.7]} 20... Ne7 {[%clk 0:01:10.4]} 21.
Rfc1 {[%clk 0:00:47.7]} 21... Nxf5 {[%clk 0:01:05.3]} 22. Bxf5 {[%clk
0:00:48.6]} 22... Qd6 {[%clk 0:01:01.9]} 23. e3 {[%clk 0:00:47]} 23... Qf6
{[%clk 0:00:50]} 24. Bg4 {[%clk 0:00:42.8]} 24... Qxf3 {[%clk 0:00:45.7]} 25.
Bxf3 {[%clk 0:00:43.7]} 25... Rce7 {[%clk 0:00:45.3]} 26. b4 {[%clk 0:00:40.3]}
26... g6 {[%clk 0:00:31.8]} 27. a4 {[%clk 0:00:40.2]} 27... a5 {[%clk
0:00:20.2]} 28. Rb1 {[%clk 0:00:32.7]} 28... Ba8 {[%clk 0:00:15.8]} 29. b5
{[%clk 0:00:25.9]} 29... cxb5 {[%clk 0:00:06.4]} 30. Rxb5 {[%clk 0:00:26.8]}
30... Re6 {[%clk 0:00:03.6]} 31. Bxd5 {[%clk 0:00:25.6]} 31... Bxd5 {[%clk
0:00:04.5]} 32. Rxd5 {[%clk 0:00:26.2]} 32... f5 {[%clk 0:00:04.4]} 33. Rc7
{[%clk 0:00:24.7]} 33... R8e7 {[%clk 0:00:04.3]} 34. Rxe7 {[%clk 0:00:24.8]}
34... Rxe7 {[%clk 0:00:05.2]} 35. Rd6 {[%clk 0:00:25.5]} 35... Rb7 {[%clk
0:00:05.8]} 36. Rxg6+ {[%clk 0:00:24.7]} 36... Kh7 {[%clk 0:00:06.7]} 37. Rf6
{[%clk 0:00:24.1]} 37... b5 {[%clk 0:00:07.2]} 38. axb5 {[%clk 0:00:23]} 38...
Rxb5 {[%clk 0:00:08.1]} 39. Ra6 {[%clk 0:00:22.7]} 39... Kg7 {[%clk 0:00:07.6]}
40. Kg2 {[%clk 0:00:23.2]} 40... Kh7 {[%clk 0:00:06.7]} 41. Kf3 {[%clk
0:00:23.7]} 41... Kg7 {[%clk 0:00:07.3]} 42. h3 {[%clk 0:00:23.6]} 42... Kh7
{[%clk 0:00:06.9]} 43. Kf4 {[%clk 0:00:24.1]} 43... Kg7 {[%clk 0:00:07.2]} 44.
g4 {[%clk 0:00:24.3]} 44... fxg4 {[%clk 0:00:07.2]} 45. hxg4 {[%clk 0:00:25.2]}
45... Kh7 {[%clk 0:00:07.6]} 46. f3 {[%clk 0:00:25.7]} 46... Kg7 {[%clk
0:00:07.9]} 47. e4 {[%clk 0:00:26.3]} 47... Kh7 {[%clk 0:00:08.2]} 48. d5 {[%clk
0:00:26.9]} 48... Kg7 {[%clk 0:00:08.8]} 49. d6 {[%clk 0:00:27.2]} 49... Kf7
{[%clk 0:00:09.1]} 50. d7 {[%clk 0:00:22.3]} 50... Ke7 {[%clk 0:00:09.4]} 51.
Rxh6 {[%clk 0:00:23]} 51... Kxd7 {[%clk 0:00:09.2]} 52. Ra6 {[%clk 0:00:23.5]}
52... Ke7 {[%clk 0:00:09.1]} 53. e5 {[%clk 0:00:21.5]} 53... Kf7 {[%clk
0:00:09.3]} 54. Kf5 {[%clk 0:00:21.7]} 54... Ke7 {[%clk 0:00:07.5]} 55. f4
{[%clk 0:00:21]} 55... Kf7 {[%clk 0:00:08]} 56. g5 {[%clk 0:00:21.5]} 56... Kg7
{[%clk 0:00:08.3]} 57. Ra7+ {[%clk 0:00:21.7]} 57... Kf8 {[%clk 0:00:08.4]} 58.
Kf6 {[%clk 0:00:21.5]} 58... Kg8 {[%clk 0:00:08]} 59. Ra8+ {[%clk 0:00:20.6]}
59... Kh7 {[%clk 0:00:07.9]} 60. g6+ {[%clk 0:00:21]} 60... Kh6 {[%clk
0:00:08.8]} 61. Rh8# {[%clk 0:00:21.3]} 1-0

[Event "Late-Titled-Tuesday-Blitz-February-27-2024"]
[Site "Chess.com"]
[Date "2024.02.27"]
[Round "2"]
[White "FredddieCroderg"]
[Black "Machidon"]
[Result "1-0"]
[WhiteElo "2283"]
[BlackElo "2492"]
[TimeControl "180+1"]
[EndTime "14:18:13 PST"]
[Termination "FredddieCroderg won by resignation"]

1. e4 {[%clk 0:03:00.9]} 1... c6 {[%clk 0:02:53.5]} 2. d4 {[%clk 0:02:59.3]}
2... d5 {[%clk 0:02:53.7]} 3. exd5 {[%clk 0:02:59.4]} 3... cxd5 {[%clk
0:02:54.6]} 4. Nf3 {[%clk 0:02:59.2]} 4... Nc6 {[%clk 0:02:52.6]} 5. c3 {[%clk
0:02:58.6]} 5... Bf5 {[%clk 0:02:51.4]} 6. Bb5 {[%clk 0:02:57.7]} 6... f6 {[%clk
0:02:39.5]} 7. O-O {[%clk 0:02:57]} 7... e6 {[%clk 0:02:27]} 8. Re1 {[%clk
0:02:55.2]} 8... Bd6 {[%clk 0:02:20.1]} 9. Nh4 {[%clk 0:02:54.3]} 9... Bxb1
{[%clk 0:02:19.4]} 10. Rxb1 {[%clk 0:02:50.8]} 10... Qd7 {[%clk 0:02:15.2]} 11.
Qg4 {[%clk 0:02:43]} 11... Kf7 {[%clk 0:01:50.2]} 12. c4 {[%clk 0:02:28.6]}
12... Nge7 {[%clk 0:01:31.5]} 13. c5 {[%clk 0:02:14.3]} 13... Bc7 {[%clk
0:01:30]} 14. g3 {[%clk 0:02:04.5]} 14... h5 {[%clk 0:01:19.1]} 15. Qh3 {[%clk
0:01:58.3]} 15... Rad8 {[%clk 0:01:15.8]} 16. Ng2 {[%clk 0:01:54.6]} 16... a6
{[%clk 0:01:07.3]} 17. Ba4 {[%clk 0:01:49.1]} 17... e5 {[%clk 0:01:07.2]} 18.
Qxd7 {[%clk 0:01:42.9]} 18... Rxd7 {[%clk 0:01:08.1]} 19. dxe5 {[%clk
0:01:41.7]} 19... fxe5 {[%clk 0:01:09]} 20. b4 {[%clk 0:01:35.5]} 20... a5
{[%clk 0:00:39.1]} 21. b5 {[%clk 0:01:32]} 21... Nd4 {[%clk 0:00:39.2]} 22. b6
{[%clk 0:01:26.1]} 22... Nf3+ {[%clk 0:00:35.2]} 23. Kh1 {[%clk 0:01:21.1]}
23... Nxe1 {[%clk 0:00:34.7]} 24. Bxd7 {[%clk 0:01:08.5]} 24... Nxg2 {[%clk
0:00:33.5]} 25. bxc7 {[%clk 0:01:04.6]} 25... Ne1 {[%clk 0:00:31.1]} 26. Rxb7
{[%clk 0:01:00.2]} 26... Nd3 {[%clk 0:00:23.9]} 27. Bg5 {[%clk 0:00:54.6]} 27...
Nxc5 {[%clk 0:00:23.7]} 28. Bxe7 {[%clk 0:00:19.2]} 28... Nxd7 {[%clk
0:00:20.3]} 29. Bd6 {[%clk 0:00:16.1]} 29... Ke6 {[%clk 0:00:18.3]} 30. Rb8
{[%clk 0:00:15.6]} 30... Nxb8 {[%clk 0:00:15.3]} 31. cxb8=Q {[%clk 0:00:14.5]}
31... Rxb8 {[%clk 0:00:16.2]} 32. Bxb8 {[%clk 0:00:14.8]} 32... d4 {[%clk
0:00:17.1]} 33. Kg1 {[%clk 0:00:15.1]} 33... Kd5 {[%clk 0:00:16.6]} 34. Kf1
{[%clk 0:00:15.7]} 34... e4 {[%clk 0:00:16.1]} 35. Ke1 {[%clk 0:00:16.1]} 35...
Kc4 {[%clk 0:00:16.2]} 36. Kd2 {[%clk 0:00:16.2]} 36... g5 {[%clk 0:00:13.2]}
37. Bc7 {[%clk 0:00:15.5]} 37... a4 {[%clk 0:00:13.1]} 38. Bd8 {[%clk
0:00:15.5]} 38... g4 {[%clk 0:00:12.8]} 39. Bf6 {[%clk 0:00:15.1]} 39... Kd5
{[%clk 0:00:12.4]} 40. Ke2 {[%clk 0:00:14.8]} 40... Kc4 {[%clk 0:00:12.5]} 41.
Kd2 {[%clk 0:00:15.1]} 41... Kd5 {[%clk 0:00:12.6]} 42. Kc2 {[%clk 0:00:15]}
42... Kc4 {[%clk 0:00:12.8]} 43. Bg5 {[%clk 0:00:15.1]} 43... Kb4 {[%clk
0:00:12]} 44. Bd2+ {[%clk 0:00:14.5]} 44... Kc4 {[%clk 0:00:12.1]} 45. Ba5
{[%clk 0:00:13.6]} 45... Kd5 {[%clk 0:00:10.5]} 46. Be1 {[%clk 0:00:13.9]} 46...
Kc4 {[%clk 0:00:10.7]} 47. a3 {[%clk 0:00:13.5]} 47... e3 {[%clk 0:00:09.6]} 48.
fxe3 {[%clk 0:00:13.1]} 48... dxe3 {[%clk 0:00:10.5]} 49. Bb4 {[%clk 0:00:13.1]}
49... Kd4 {[%clk 0:00:10.7]} 50. Kd1 {[%clk 0:00:13.1]} 50... Kd3 {[%clk
0:00:10.7]} 51. Ke1 {[%clk 0:00:13.6]} 51... Kd4 {[%clk 0:00:02.7]} 52. Ke2
{[%clk 0:00:13.6]} 1-0

[Event "Late-Titled-Tuesday-Blitz-February-27-2024"]
[Site "Chess.com"]
[Date "2024.02.27"]
[Round "2"]
[White "Englishman_18"]
[Black "gxbg2000"]
[Result "1-0"]
[WhiteElo "2422"]
[BlackElo "1930"]
[TimeControl "180+1"]
[EndTime "14:18:13 PST"]
[Termination "Englishman_18 won by resignation"]

1. Nf3 {[%clk 0:02:55.3]} 1... Nf6 {[%clk 0:02:59.1]} 2. c4 {[%clk 0:02:49.4]}
2... d6 {[%clk 0:02:58.7]} 3. d4 {[%clk 0:02:46.9]} 3... g6 {[%clk 0:02:58.5]}
4. b3 {[%clk 0:02:46.9]} 4... Bg7 {[%clk 0:02:58.6]} 5. Bb2 {[%clk 0:02:47.1]}
5... O-O {[%clk 0:02:59]} 6. g3 {[%clk 0:02:47]} 6... Nbd7 {[%clk 0:02:57.5]} 7.
Bg2 {[%clk 0:02:46.2]} 7... c6 {[%clk 0:02:58]} 8. O-O {[%clk 0:02:45.7]} 8...
Re8 {[%clk 0:02:58.6]} 9. Qc1 {[%clk 0:02:33.2]} 9... Ng4 {[%clk 0:02:52.1]} 10.
Rd1 {[%clk 0:02:30.9]} 10... Bh6 {[%clk 0:02:44.5]} 11. e3 {[%clk 0:02:26.1]}
11... Bg7 {[%clk 0:02:39.8]} 12. h3 {[%clk 0:02:25.8]} 12... Nh6 {[%clk
0:02:38.9]} 13. e4 {[%clk 0:02:20.5]} 13... e6 {[%clk 0:02:33]} 14. Nc3 {[%clk
0:02:17.1]} 14... Qe7 {[%clk 0:02:21.5]} 15. Ne2 {[%clk 0:01:56.7]} 15... e5
{[%clk 0:02:21]} 16. d5 {[%clk 0:01:38.7]} 16... cxd5 {[%clk 0:02:19.6]} 17.
Rxd5 {[%clk 0:01:32.3]} 17... Nf6 {[%clk 0:02:13.7]} 18. Nc3 {[%clk 0:01:28.5]}
18... Nxd5 {[%clk 0:02:12.4]} 19. Nxd5 {[%clk 0:01:29.4]} 19... Qd8 {[%clk
0:02:05.4]} 20. c5 {[%clk 0:01:20.5]} 20... Be6 {[%clk 0:02:01]} 21. cxd6 {[%clk
0:01:17.2]} 21... Qxd6 {[%clk 0:02:00.5]} 22. Ba3 {[%clk 0:01:17.8]} 22... Qc6
{[%clk 0:01:46.7]} 23. Qxc6 {[%clk 0:01:16.1]} 23... bxc6 {[%clk 0:01:46]} 24.
Nc7 {[%clk 0:01:16.7]} 24... f5 {[%clk 0:01:35.5]} 25. Nxa8 {[%clk 0:01:14.1]}
25... Rxa8 {[%clk 0:01:34.9]} 26. Ng5 {[%clk 0:01:14]} 26... Bf7 {[%clk
0:01:26.8]} 27. exf5 {[%clk 0:01:12.8]} 27... Nxf5 {[%clk 0:01:24]} 28. Nxf7
{[%clk 0:01:06.4]} 28... Kxf7 {[%clk 0:01:23.4]} 29. Bxc6 {[%clk 0:01:06.9]}
29... Rc8 {[%clk 0:01:20.2]} 30. Rc1 {[%clk 0:01:05.8]} 30... Kf6 {[%clk
0:01:12.1]} 31. Bg2 {[%clk 0:00:44.2]} 31... Rxc1+ {[%clk 0:01:08.3]} 32. Bxc1
{[%clk 0:00:43.7]} 32... Nd4 {[%clk 0:01:09.2]} 33. Kf1 {[%clk 0:00:41.8]} 33...
Ke6 {[%clk 0:01:06.5]} 34. Ke1 {[%clk 0:00:40.5]} 34... Bf8 {[%clk 0:01:00.6]}
35. Bd2 {[%clk 0:00:37]} 35... Bc5 {[%clk 0:01:00.3]} 36. h4 {[%clk 0:00:34.4]}
36... h5 {[%clk 0:00:38.5]} 37. Bc3 {[%clk 0:00:34]} 37... Nb5 {[%clk
0:00:31.3]} 38. Bb2 {[%clk 0:00:32.3]} 38... Nd4 {[%clk 0:00:30.4]} 39. Bc3
{[%clk 0:00:29]} 39... Nb5 {[%clk 0:00:29.2]} 40. Bd2 {[%clk 0:00:29.1]} 40...
Nd4 {[%clk 0:00:29.1]} 41. b4 {[%clk 0:00:29.4]} 41... Bb6 {[%clk 0:00:28.4]}
42. Be4 {[%clk 0:00:28.2]} 42... Kf6 {[%clk 0:00:26.7]} 43. Bd5 {[%clk
0:00:21.7]} 43... Nc2+ {[%clk 0:00:23.7]} 44. Kd1 {[%clk 0:00:18.6]} 44... Nd4
{[%clk 0:00:20.9]} 45. a4 {[%clk 0:00:17.2]} 45... Ke7 {[%clk 0:00:15.4]} 46. a5
{[%clk 0:00:16.6]} 46... Bc7 {[%clk 0:00:13.6]} 47. Bc4 {[%clk 0:00:16.6]} 47...
Kf6 {[%clk 0:00:13.2]} 48. b5 {[%clk 0:00:12.9]} 48... Ne6 {[%clk 0:00:09.3]}
49. a6 {[%clk 0:00:10.3]} 49... Nd4 {[%clk 0:00:08.5]} 50. Be3 {[%clk
0:00:10.1]} 50... Bb6 {[%clk 0:00:08]} 51. Kd2 {[%clk 0:00:09.7]} 51... Kf5
{[%clk 0:00:08.4]} 52. Kd3 {[%clk 0:00:09.6]} 52... Nf3 {[%clk 0:00:03.5]} 53.
Bxb6 {[%clk 0:00:08.8]} 53... axb6 {[%clk 0:00:03.4]} 54. a7 {[%clk 0:00:08.7]}
1-0